fUSD/lending_fUSD_20260702
["ID","MTS","AMOUNT","RATE_DAILY","PERIOD"]
[426900493,1782997838000,-4900.56830066,0.00028678,2]
[426900491,1782997838000,-3637.43911571,0.00028678,2]
[426900494,1782997838000,-43929.17769934,0.00028793,2]
[426900492,1782997838000,-3681.83808517,0.00028678,2]
[426900490,1782997838000,-6090.14185341,0.00028678,2]
[426900482,1782997838000,-545.37153401,0.0002078,2]
[426900488,1782997838000,-194.56,0.00028635,30]
[426900484,1782997838000,-1679.18,0.00027397,10]
[426900486,1782997838000,-167.23,0.0002863,30]
[426900485,1782997838000,-1872.63114559,0.000279,2]
[426900483,1782997838000,-291.13,0.00024658,2]
[426900470,1782997838000,-363.62846599,0.0002078,2]
[426900487,1782997838000,-194.08,0.00028631,2]
[426900499,1782997838000,-52001.12841815,0.00028793,2]
[426900501,1782997838000,-2253.4326169,0.00028793,2]
[426900497,1782997838000,-7607.15885652,0.00028793,2]
[426900495,1782997838000,-8355.461751,0.00028793,2]
[426900515,1782997838000,-33361.7046,0.000289,2]
[426900513,1782997838000,-18309.98735495,0.00028867,2]
[426900512,1782997838000,-177.83671219,0.0002884,2]
[426900510,1782997838000,-2479.3451527,0.00028808,2]
[426900511,1782997838000,-2000.0,0.00028821,7]
[426900509,1782997838000,-194.56,0.00028801,7]
[426900504,1782997838000,-1093.5712083,0.00028793,2]
[426900514,1782997838000,-2000.0,0.00028899,10]
[426900507,1782997838000,-1100.0,0.000288,10]
[426900508,1782997838000,-194.97,0.00028801,7]
[426900505,1782997838000,-20882.1724771,0.00028793,2]
[426900503,1782997838000,-2465.3070793,0.00028793,2]
[426900502,1782997838000,-491170.34815,0.00028793,2]
[426900500,1782997838000,-2413.3429173,0.00028793,2]
[426900506,1782997838000,-259875.3222883,0.00028793,2]
[426900498,1782997838000,-757.39,0.00028793,2]
[426900553,1782997839000,-331.01960833,0.00029,2]
[426900549,1782997839000,-500.0,0.00029,7]
[426900550,1782997839000,-500.0,0.00029,7]
[426900552,1782997839000,-7132.64478533,0.00029,2]
[426900556,1782997839000,-200.0,0.00029,2]
[426900548,1782997839000,-500.0,0.00029,7]
[426900546,1782997839000,-532.11,0.00029,7]
[426900555,1782997839000,-212.12218535,0.00029,2]
[426900547,1782997839000,-500.0,0.00029,7]
[426900554,1782997839000,-669.09185747,0.00029,2]
[426900551,1782997839000,-500.0,0.00029,7]
[426900557,1782997839000,-164.0,0.00029,2]
[426900570,1782997839000,-150.0,0.00029119,2]
[426900558,1782997839000,-180.0,0.00029,2]
[426900560,1782997839000,-154.0,0.00029,4]
[426900562,1782997839000,-196.0,0.00029,2]
[426900561,1782997839000,-154.0,0.00029,4]
[426900564,1782997839000,-150.0,0.0002911,5]
[426900563,1782997839000,-508.0,0.00029025,4]
[426900545,1782997839000,-500.0,0.00029,7]
[426900568,1782997839000,-500.0,0.00029119,2]
[426900567,1782997839000,-500.0,0.00029119,2]
[426900565,1782997839000,-150.0,0.00029115,5]
[426900569,1782997839000,-382.12671724,0.00029119,2]
[426900571,1782997839000,-500.0,0.00029119,14]
[426900559,1782997839000,-154.0,0.00029,4]
[426900542,1782997839000,-500.0,0.00029,7]
[426900535,1782997839000,-500.0,0.00029,7]
[426900541,1782997839000,-500.0,0.00029,7]
[426900519,1782997839000,-480.0,0.00028904,2]
[426900518,1782997839000,-1300.0,0.00028904,2]
[426900516,1782997839000,-2000.0,0.000289,2]
[426900520,1782997839000,-220.83058827,0.00028946,30]
[426900517,1782997839000,-1700.0,0.000289,10]
[426900522,1782997839000,-194.97,0.00028968,2]
[426900521,1782997839000,-220.83058827,0.00028946,30]
[426900523,1782997839000,-2000.0,0.00028969,6]
[426900524,1782997839000,-500.0,0.00028971,2]
[426900527,1782997839000,-616.4,0.00028999,7]
[426900528,1782997839000,-2000.0,0.00028999,2]
[426900529,1782997839000,-2000.0,0.00028999,5]
[426900530,1782997839000,-500.0,0.00028999,7]
[426900525,1782997839000,-151.13538036,0.00028971,2]
[426900526,1782997839000,-1000.0,0.00028999,2]
[426900531,1782997839000,-179667.22695082,0.00029,5]
[426900532,1782997839000,-1256.62575978,0.00029,7]
[426900533,1782997839000,-500.0,0.00029,7]
[426900534,1782997839000,-500.0,0.00029,7]
[426900536,1782997839000,-500.0,0.00029,7]
[426900538,1782997839000,-500.0,0.00029,7]
[426900540,1782997839000,-172.7,0.00029,30]
[426900537,1782997839000,-500.0,0.00029,7]
[426900543,1782997839000,-500.0,0.00029,7]
[426900544,1782997839000,-500.0,0.00029,7]
[426900539,1782997839000,-500.0,0.00029,7]
[426900572,1782997839000,-500.0,0.00029119,14]
[426900566,1782997839000,-151.0,0.00029117,7]
[426900573,1782997839000,-500.0,0.00029119,60]
[426900605,1782997839000,-160.0,0.000297,10]
[426900607,1782997839000,-614.1216169,0.00029717,2]
[426900613,1782997839000,-1000.0,0.00029863,7]
[426900606,1782997839000,-2300.0,0.000297,10]
[426900614,1782997839000,-1000.0,0.00029863,7]
[426900615,1782997839000,-1000.0,0.00029863,7]
[426900609,1782997839000,-1000.0,0.00029863,7]
[426900608,1782997839000,-2900.0,0.000298,10]
[426900610,1782997839000,-1000.0,0.00029863,7]
[426900611,1782997839000,-1000.0,0.00029863,7]
[426900612,1782997839000,-1000.0,0.00029863,7]
[426900616,1782997839000,-1617.98708688,0.00029863,7]
[426900617,1782997839000,-200.0,0.00029879,2]
[426900620,1782997839000,-168.33840262,0.000299,2]
[426900618,1782997839000,-24999.999999,0.000299,7]
[426900619,1782997839000,-500.0,0.000299,10]
[426900622,1782997839000,-511.21232853,0.0002998,2]
[426900621,1782997839000,-205.69219555,0.000299,5]
[426900624,1782997839000,-1000.0,0.00029999,2]
[426900623,1782997839000,-1000.0,0.00029999,2]
[426900625,1782997839000,-616.4,0.00029999,7]
[426900626,1782997839000,-616.4,0.00029999,7]
[426900628,1782997839000,-800.0,0.0003,2]
[426900629,1782997839000,-350652.17931686,0.0003,30]
[426900630,1782997839000,-10834.54784323,0.0003,3]
[426900603,1782997839000,-163.76,0.00029634,2]
[426900599,1782997839000,-200.0,0.00029583,2]
[426900574,1782997839000,-500.0,0.00029119,60]
[426900604,1782997839000,-173.3,0.00029637,2]
[426900580,1782997839000,-392.36326978,0.00029119,7]
[426900576,1782997839000,-1000.0,0.00029119,2]
[426900575,1782997839000,-1000.0,0.00029119,2]
[426900577,1782997839000,-616.4,0.00029119,7]
[426900578,1782997839000,-616.4,0.00029119,7]
[426900579,1782997839000,-500.0,0.00029119,7]
[426900581,1782997839000,-673.0,0.0002912,5]
[426900598,1782997839000,-150.0,0.00029534,2]
[426900583,1782997839000,-163.76,0.00029132,7]
[426900590,1782997839000,-160.0,0.000292,30]
[426900591,1782997839000,-253.00747384,0.0002921,2]
[426900593,1782997839000,-7132.64478533,0.000293,2]
[426900586,1782997839000,-173.3,0.00029137,7]
[426900582,1782997839000,-425601.0,0.0002912,20]
[426900584,1782997839000,-167.23,0.00029132,7]
[426900585,1782997839000,-194.97,0.00029135,30]
[426900602,1782997839000,-7132.64478533,0.000296,2]
[426900601,1782997839000,-166.47,0.00029598,2]
[426900600,1782997839000,-503.0,0.00029589,2]
[426900597,1782997839000,-152.16250135,0.00029448,2]
[426900596,1782997839000,-956.41,0.00029403,7]
[426900594,1782997839000,-194.97,0.00029302,7]
[426900592,1782997839000,-200.0,0.0002929,2]
[426900589,1782997839000,-160.0,0.000292,30]
[426900588,1782997839000,-216.33145962,0.0002915,30]
[426900587,1782997839000,-173.3,0.00029138,7]
[426900595,1782997839000,-534.0,0.00029392,10]
[426900666,1782997840000,-407.62811379,0.0003009,2]
[426900672,1782997840000,-1000.0,0.00030099,2]
[426900668,1782997840000,-151.0,0.00030097,7]
[426900670,1782997840000,-1000.0,0.00030099,2]
[426900667,1782997840000,-151.0,0.00030097,7]
[426900660,1782997840000,-419.350981,0.0003008,7]
[426900664,1782997840000,-296749.64397717,0.0003009,2]
[426900674,1782997840000,-1000.0,0.00030099,2]
[426900665,1782997840000,-407.62811379,0.0003009,2]
[426900661,1782997840000,-46854.66,0.00030089,2]
[426900673,1782997840000,-1000.0,0.00030099,2]
[426900671,1782997840000,-1000.0,0.00030099,2]
[426900687,1782997840000,-1000.0,0.00030099,2]
[426900675,1782997840000,-1000.0,0.00030099,2]
[426900677,1782997840000,-1000.0,0.00030099,2]
[426900676,1782997840000,-1000.0,0.00030099,2]
[426900678,1782997840000,-1000.0,0.00030099,2]
[426900684,1782997840000,-1000.0,0.00030099,2]
[426900679,1782997840000,-1000.0,0.00030099,2]
[426900680,1782997840000,-1000.0,0.00030099,2]
[426900681,1782997840000,-1000.0,0.00030099,2]
[426900682,1782997840000,-1000.0,0.00030099,2]
[426900683,1782997840000,-1000.0,0.00030099,2]
[426900685,1782997840000,-1000.0,0.00030099,2]
[426900658,1782997840000,-419.350981,0.0003008,7]
[426900669,1782997840000,-151.0,0.00030097,7]
[426900662,1782997840000,-1000.0,0.00030089,2]
[426900642,1782997840000,-200.0,0.00030079,2]
[426900659,1782997840000,-419.350981,0.0003008,7]
[426900693,1782997840000,-1000.0,0.00030099,2]
[426900635,1782997840000,-401.42976885,0.0003,2]
[426900637,1782997840000,-160.0,0.0003,30]
[426900631,1782997840000,-26625.73155204,0.0003,10]
[426900633,1782997840000,-160.33,0.0003,7]
[426900634,1782997840000,-185.36,0.0003,7]
[426900639,1782997840000,-281.98188127,0.00030051,2]
[426900632,1782997840000,-696.39431812,0.0003,15]
[426900636,1782997840000,-160.0,0.0003,3]
[426900640,1782997840000,-151.0,0.00030077,7]
[426900641,1782997840000,-501.95764274,0.00030079,14]
[426900643,1782997840000,-500.0,0.00030079,60]
[426900644,1782997840000,-500.0,0.00030079,60]
[426900645,1782997840000,-200.0,0.00030079,2]
[426900650,1782997840000,-200.0,0.00030079,2]
[426900646,1782997840000,-1000.0,0.00030079,2]
[426900648,1782997840000,-616.4,0.00030079,7]
[426900647,1782997840000,-1000.0,0.00030079,2]
[426900649,1782997840000,-616.4,0.00030079,7]
[426900651,1782997840000,-425601.0,0.0003008,20]
[426900653,1782997840000,-151.0,0.0003008,7]
[426900655,1782997840000,-151.0,0.0003008,7]
[426900656,1782997840000,-419.350981,0.0003008,7]
[426900654,1782997840000,-151.0,0.0003008,7]
[426900663,1782997840000,-616.4,0.00030089,7]
[426900652,1782997840000,-151.0,0.0003008,7]
[426900689,1782997840000,-1000.0,0.00030099,2]
[426900638,1782997840000,-4052.76433949,0.0003,2]
[426900697,1782997840000,-1000.0,0.00030099,2]
[426900719,1782997840000,-1000.0,0.00030099,2]
[426900721,1782997840000,-1000.0,0.00030099,2]
[426900722,1782997840000,-1000.0,0.00030099,2]
[426900724,1782997840000,-1000.0,0.00030099,2]
[426900726,1782997840000,-1000.0,0.00030099,2]
[426900737,1782997840000,-616.4,0.00030099,7]
[426900736,1782997840000,-616.4,0.00030099,7]
[426900725,1782997840000,-1000.0,0.00030099,2]
[426900727,1782997840000,-1000.0,0.00030099,2]
[426900728,1782997840000,-842.52111586,0.00030099,2]
[426900730,1782997840000,-616.4,0.00030099,7]
[426900729,1782997840000,-616.4,0.00030099,7]
[426900731,1782997840000,-616.4,0.00030099,7]
[426900735,1782997840000,-616.4,0.00030099,7]
[426900732,1782997840000,-616.4,0.00030099,7]
[426900733,1782997840000,-616.4,0.00030099,7]
[426900734,1782997840000,-616.4,0.00030099,7]
[426900738,1782997840000,-616.4,0.00030099,7]
[426900739,1782997840000,-616.4,0.00030099,7]
[426900740,1782997840000,-616.4,0.00030099,7]
[426900741,1782997840000,-616.4,0.00030099,7]
[426900745,1782997840000,-448.30419999,0.000301,7]
[426900744,1782997840000,-2347523.05102461,0.000301,7]
[426900742,1782997840000,-616.41135694,0.00030099,7]
[426900690,1782997840000,-1000.0,0.00030099,2]
[426900717,1782997840000,-1000.0,0.00030099,2]
[426900720,1782997840000,-1000.0,0.00030099,2]
[426900743,1782997840000,-45896.1873549,0.000301,2]
[426900715,1782997840000,-1000.0,0.00030099,2]
[426900718,1782997840000,-1000.0,0.00030099,2]
[426900686,1782997840000,-1000.0,0.00030099,2]
[426900692,1782997840000,-1000.0,0.00030099,2]
[426900695,1782997840000,-1000.0,0.00030099,2]
[426900688,1782997840000,-1000.0,0.00030099,2]
[426900696,1782997840000,-1000.0,0.00030099,2]
[426900691,1782997840000,-1000.0,0.00030099,2]
[426900698,1782997840000,-1000.0,0.00030099,2]
[426900699,1782997840000,-1000.0,0.00030099,2]
[426900710,1782997840000,-1000.0,0.00030099,2]
[426900700,1782997840000,-1000.0,0.00030099,2]
[426900702,1782997840000,-1000.0,0.00030099,2]
[426900701,1782997840000,-1000.0,0.00030099,2]
[426900694,1782997840000,-1000.0,0.00030099,2]
[426900708,1782997840000,-1000.0,0.00030099,2]
[426900709,1782997840000,-1000.0,0.00030099,2]
[426900712,1782997840000,-1000.0,0.00030099,2]
[426900713,1782997840000,-1000.0,0.00030099,2]
[426900723,1782997840000,-1000.0,0.00030099,2]
[426900711,1782997840000,-1000.0,0.00030099,2]
[426900714,1782997840000,-1000.0,0.00030099,2]
[426900703,1782997840000,-1000.0,0.00030099,2]
[426900705,1782997840000,-1000.0,0.00030099,2]
[426900704,1782997840000,-1000.0,0.00030099,2]
[426900706,1782997840000,-1000.0,0.00030099,2]
[426900707,1782997840000,-1000.0,0.00030099,2]
[426900716,1782997840000,-1000.0,0.00030099,2]
[426900786,1782997841000,-207.334712,0.000301,7]
[426900797,1782997841000,-505.29306,0.000301,7]
[426900795,1782997841000,-505.29306,0.000301,7]
[426900787,1782997841000,-151.0,0.000301,7]
[426900792,1782997841000,-151.0,0.000301,7]
[426900790,1782997841000,-246.066584,0.000301,7]
[426900796,1782997841000,-505.29306,0.000301,7]
[426900793,1782997841000,-151.0,0.000301,7]
[426900794,1782997841000,-151.0,0.000301,7]
[426900798,1782997841000,-505.29306,0.000301,7]
[426900799,1782997841000,-151.0,0.000301,7]
[426900804,1782997841000,-194.481172,0.000301,7]
[426900802,1782997841000,-151.0,0.000301,7]
[426900803,1782997841000,-151.0,0.000301,7]
[426900801,1782997841000,-151.0,0.000301,7]
[426900805,1782997841000,-151.0,0.000301,7]
[426900807,1782997841000,-151.0,0.000301,7]
[426900806,1782997841000,-151.0,0.000301,7]
[426900813,1782997841000,-735.114555,0.000301,7]
[426900808,1782997841000,-151.0,0.000301,7]
[426900791,1782997841000,-151.0,0.000301,7]
[426900800,1782997841000,-151.0,0.000301,7]
[426900789,1782997841000,-234.051604,0.000301,7]
[426900770,1782997841000,-2355.992101,0.00030089,7]
[426900785,1782997841000,-207.334712,0.000301,7]
[426900809,1782997841000,-151.0,0.000301,7]
[426900746,1782997841000,-165.47,0.00027962,2]
[426900747,1782997841000,-194.56,0.00028968,2]
[426900748,1782997841000,-194.56,0.00029135,30]
[426900749,1782997841000,-194.56,0.00029302,7]
[426900753,1782997841000,-96027.49,0.000301,7]
[426900756,1782997841000,-6130.5,0.000301,7]
[426900761,1782997841000,-711.71007318,0.000301,7]
[426900758,1782997841000,-699.48923313,0.000301,7]
[426900764,1782997841000,-1322.91230409,0.000301,7]
[426900751,1782997841000,-194.56,0.00029469,2]
[426900766,1782997841000,-411.15336399,0.000301,7]
[426900782,1782997841000,-151.0,0.000301,7]
[426900784,1782997841000,-207.334712,0.000301,7]
[426900772,1782997841000,-887494.18889149,0.000301,7]
[426900783,1782997841000,-207.334712,0.000301,7]
[426900776,1782997841000,-151.0,0.000301,7]
[426900774,1782997841000,-221.09,0.000301,7]
[426900779,1782997841000,-158.04132,0.000301,7]
[426900778,1782997841000,-151.0,0.000301,7]
[426900781,1782997841000,-151.0,0.000301,7]
[426900777,1782997841000,-4870.04,0.000301,7]
[426900780,1782997841000,-151.0,0.000301,7]
[426900788,1782997841000,-151.0,0.000301,7]
[426900812,1782997841000,-735.114555,0.000301,7]
[426900810,1782997841000,-151.0,0.000301,7]
[426900811,1782997841000,-151.0,0.000301,7]
[426900841,1782997841000,-256.743556,0.000301,7]
[426900845,1782997841000,-151.0,0.000301,7]
[426900843,1782997841000,-256.743556,0.000301,7]
[426900850,1782997841000,-151.0,0.000301,7]
[426900846,1782997841000,-151.0,0.000301,7]
[426900844,1782997841000,-256.743556,0.000301,7]
[426900840,1782997841000,-256.743556,0.000301,7]
[426900849,1782997841000,-151.0,0.000301,7]
[426900847,1782997841000,-151.0,0.000301,7]
[426900852,1782997841000,-419.350981,0.000301,7]
[426900842,1782997841000,-256.743556,0.000301,7]
[426900862,1782997841000,-151.0,0.00030137,7]
[426900854,1782997841000,-419.350981,0.000301,7]
[426900863,1782997841000,-208.736198,0.00030137,7]
[426900853,1782997841000,-419.350981,0.000301,7]
[426900856,1782997841000,-169.0,0.000301,3]
[426900857,1782997841000,-151.0,0.00030137,7]
[426900859,1782997841000,-151.0,0.00030137,7]
[426900858,1782997841000,-151.0,0.00030137,7]
[426900860,1782997841000,-151.0,0.00030137,7]
[426900861,1782997841000,-151.0,0.00030137,7]
[426900814,1782997841000,-151.0,0.000301,7]
[426900851,1782997841000,-419.350981,0.000301,7]
[426900848,1782997841000,-151.0,0.000301,7]
[426900855,1782997841000,-169.0,0.000301,3]
[426900832,1782997841000,-151.0,0.000301,7]
[426900815,1782997841000,-735.114555,0.000301,7]
[426900839,1782997841000,-256.743556,0.000301,7]
[426900816,1782997841000,-154.8964,0.000301,7]
[426900817,1782997841000,-735.114555,0.000301,7]
[426900819,1782997841000,-735.114555,0.000301,7]
[426900818,1782997841000,-735.114555,0.000301,7]
[426900820,1782997841000,-735.114555,0.000301,7]
[426900823,1782997841000,-154.475904,0.000301,7]
[426900824,1782997841000,-154.475904,0.000301,7]
[426900822,1782997841000,-154.475904,0.000301,7]
[426900826,1782997841000,-154.475904,0.000301,7]
[426900821,1782997841000,-735.114555,0.000301,7]
[426900837,1782997841000,-256.743556,0.000301,7]
[426900828,1782997841000,-154.475904,0.000301,7]
[426900838,1782997841000,-256.743556,0.000301,7]
[426900836,1782997841000,-151.0,0.000301,7]
[426900833,1782997841000,-151.0,0.000301,7]
[426900827,1782997841000,-154.475904,0.000301,7]
[426900834,1782997841000,-151.0,0.000301,7]
[426900830,1782997841000,-151.0,0.000301,7]
[426900831,1782997841000,-151.0,0.000301,7]
[426900829,1782997841000,-154.475904,0.000301,7]
[426900825,1782997841000,-154.475904,0.000301,7]
[426900835,1782997841000,-151.0,0.000301,7]
[426900913,1782997842000,-151.0,0.00030137,7]
[426900902,1782997842000,-165.625117,0.00030137,7]
[426900899,1782997842000,-304.4112,0.00030137,7]
[426900906,1782997842000,-304.4112,0.00030137,7]
[426900904,1782997842000,-151.0,0.00030137,7]
[426900903,1782997842000,-304.4112,0.00030137,7]
[426900892,1782997842000,-151.0,0.00030137,7]
[426900895,1782997842000,-274.563593,0.00030137,7]
[426900896,1782997842000,-151.0,0.00030137,7]
[426900894,1782997842000,-189.325762,0.00030137,7]
[426900905,1782997842000,-165.625117,0.00030137,7]
[426900893,1782997842000,-151.0,0.00030137,7]
[426900907,1782997842000,-165.625117,0.00030137,7]
[426900920,1782997842000,-151.0,0.00030137,7]
[426900910,1782997842000,-267.842132,0.00030137,7]
[426900908,1782997842000,-267.842132,0.00030137,7]
[426900911,1782997842000,-267.842132,0.00030137,7]
[426900909,1782997842000,-267.842132,0.00030137,7]
[426900914,1782997842000,-151.0,0.00030137,7]
[426900917,1782997842000,-151.0,0.00030137,7]
[426900916,1782997842000,-151.0,0.00030137,7]
[426900918,1782997842000,-151.0,0.00030137,7]
[426900924,1782997842000,-151.0,0.00030137,7]
[426900922,1782997842000,-194.336692,0.00030137,7]
[426900923,1782997842000,-194.336692,0.00030137,7]
[426900919,1782997842000,-157.308514,0.00030137,7]
[426900890,1782997842000,-151.0,0.00030137,7]
[426900912,1782997842000,-157.308514,0.00030137,7]
[426900897,1782997842000,-304.4112,0.00030137,7]
[426900870,1782997842000,-208.736198,0.00030137,7]
[426900901,1782997842000,-151.0,0.00030137,7]
[426900925,1782997842000,-194.336692,0.00030137,7]
[426900864,1782997842000,-151.0,0.00030137,7]
[426900869,1782997842000,-151.0,0.00030137,7]
[426900866,1782997842000,-208.736198,0.00030137,7]
[426900875,1782997842000,-274.19446,0.00030137,7]
[426900873,1782997842000,-274.19446,0.00030137,7]
[426900872,1782997842000,-208.736198,0.00030137,7]
[426900871,1782997842000,-274.641433,0.00030137,7]
[426900868,1782997842000,-151.0,0.00030137,7]
[426900867,1782997842000,-164.208466,0.00030137,7]
[426900874,1782997842000,-274.19446,0.00030137,7]
[426900865,1782997842000,-151.0,0.00030137,7]
[426900877,1782997842000,-257.075352,0.00030137,7]
[426900900,1782997842000,-165.625117,0.00030137,7]
[426900880,1782997842000,-151.0,0.00030137,7]
[426900876,1782997842000,-274.19446,0.00030137,7]
[426900887,1782997842000,-151.0,0.00030137,7]
[426900878,1782997842000,-151.0,0.00030137,7]
[426900888,1782997842000,-151.0,0.00030137,7]
[426900881,1782997842000,-151.0,0.00030137,7]
[426900882,1782997842000,-151.0,0.00030137,7]
[426900885,1782997842000,-257.075352,0.00030137,7]
[426900883,1782997842000,-257.075352,0.00030137,7]
[426900884,1782997842000,-151.0,0.00030137,7]
[426900886,1782997842000,-163.873965,0.00030137,7]
[426900889,1782997842000,-151.0,0.00030137,7]
[426900891,1782997842000,-151.0,0.00030137,7]
[426900898,1782997842000,-151.0,0.00030137,7]
[426900879,1782997842000,-257.075352,0.00030137,7]
[426900921,1782997842000,-157.308514,0.00030137,7]
[426900973,1782997842000,-151.0,0.00030137,7]
[426900937,1782997842000,-151.0,0.00030137,7]
[426900960,1782997842000,-151.0,0.00030137,7]
[426900957,1782997842000,-155.935414,0.00030137,7]
[426900961,1782997842000,-151.0,0.00030137,7]
[426900958,1782997842000,-155.935414,0.00030137,7]
[426900962,1782997842000,-151.0,0.00030137,7]
[426900964,1782997842000,-151.0,0.00030137,7]
[426900970,1782997842000,-181.700672,0.00030137,7]
[426900968,1782997842000,-151.0,0.00030137,7]
[426900965,1782997842000,-151.0,0.00030137,7]
[426900966,1782997842000,-151.0,0.00030137,7]
[426900975,1782997842000,-151.266521,0.00030137,7]
[426900972,1782997842000,-151.0,0.00030137,7]
[426900971,1782997842000,-151.0,0.00030137,7]
[426900959,1782997842000,-155.935414,0.00030137,7]
[426900974,1782997842000,-151.0,0.00030137,7]
[426900969,1782997842000,-151.0,0.00030137,7]
[426900977,1782997842000,-151.0,0.00030137,7]
[426900989,1782997842000,-151.0,0.00030137,7]
[426900987,1782997842000,-151.000121,0.00030137,7]
[426900976,1782997842000,-151.0,0.00030137,7]
[426900978,1782997842000,-151.0,0.00030137,7]
[426900980,1782997842000,-151.0,0.00030137,7]
[426900979,1782997842000,-151.0,0.00030137,7]
[426900981,1782997842000,-288.035022,0.00030137,7]
[426900982,1782997842000,-151.0,0.00030137,7]
[426900984,1782997842000,-151.0,0.00030137,7]
[426900983,1782997842000,-151.0,0.00030137,7]
[426900915,1782997842000,-157.308514,0.00030137,7]
[426900967,1782997842000,-151.0,0.00030137,7]
[426900952,1782997842000,-162.699098,0.00030137,7]
[426900986,1782997842000,-151.0,0.00030137,7]
[426900955,1782997842000,-162.699098,0.00030137,7]
[426900954,1782997842000,-162.699098,0.00030137,7]
[426900938,1782997842000,-151.0,0.00030137,7]
[426900929,1782997842000,-151.0,0.00030137,7]
[426900926,1782997842000,-151.0,0.00030137,7]
[426900930,1782997842000,-151.0,0.00030137,7]
[426900935,1782997842000,-151.0,0.00030137,7]
[426900934,1782997842000,-151.0,0.00030137,7]
[426900928,1782997842000,-151.0,0.00030137,7]
[426900933,1782997842000,-151.0,0.00030137,7]
[426900936,1782997842000,-183.234945,0.00030137,7]
[426900931,1782997842000,-151.0,0.00030137,7]
[426900932,1782997842000,-151.0,0.00030137,7]
[426900939,1782997842000,-180.680962,0.00030137,7]
[426900942,1782997842000,-151.0,0.00030137,7]
[426900927,1782997842000,-194.336692,0.00030137,7]
[426900948,1782997842000,-185.706497,0.00030137,7]
[426900941,1782997842000,-151.0,0.00030137,7]
[426900963,1782997842000,-151.0,0.00030137,7]
[426900953,1782997842000,-162.699098,0.00030137,7]
[426900951,1782997842000,-151.0,0.00030137,7]
[426900946,1782997842000,-185.706497,0.00030137,7]
[426900944,1782997842000,-183.234945,0.00030137,7]
[426900956,1782997842000,-155.935414,0.00030137,7]
[426900945,1782997842000,-151.0,0.00030137,7]
[426900949,1782997842000,-185.706497,0.00030137,7]
[426900947,1782997842000,-185.706497,0.00030137,7]
[426900950,1782997842000,-151.0,0.00030137,7]
[426900943,1782997842000,-183.234945,0.00030137,7]
[426900940,1782997842000,-183.234945,0.00030137,7]
[426901046,1782997843000,-151.0,0.00030137,7]
[426901043,1782997843000,-500.0122,0.00030137,7]
[426901042,1782997843000,-151.0,0.00030137,7]
[426901039,1782997843000,-151.0,0.00030137,7]
[426901041,1782997843000,-151.0,0.00030137,7]
[426901040,1782997843000,-151.0,0.00030137,7]
[426901038,1782997843000,-151.0,0.00030137,7]
[426901048,1782997843000,-151.0,0.00030137,7]
[426901047,1782997843000,-500.0122,0.00030137,7]
[426901049,1782997843000,-500.0122,0.00030137,7]
[426901044,1782997843000,-151.0,0.00030137,7]
[426901050,1782997843000,-151.0,0.00030137,7]
[426901045,1782997843000,-500.0122,0.00030137,7]